Workbook

Sheet Sheet1
A1: Bill of Quantities It is the Tenderer's responsibility to price all items in the Bill of Quantities in accordance with the enquiry document requirements, including but not limited to the Scope of works, drawings and conditions of contract . All items should be priced and where items are not required, they should be stated as Not Required.

Sheet PRELIMINARIES AND GENERAL
A1: ITEM NO. | B1: PAY REF. | C1: DESCRIPTION | D1: UNIT | E1: QUANTITY | F1: RATE | G1: AMOUNT
C3: SECTION NO. 1 - PRELIMINARIES AND GENERAL
C5: PRELIMINARIES AND GENERAL
C7: Note: It is the Tenderer's responsibility to price the Preliminaries and General in accordance with all the information provided in the enquiry document and complaince to all the OHS Acts, Environmental and Quality plans and Construction regulations
C9: BILL NO. 1.1
C11: FIXED CHARGE ITEMS
C13: Value Added Tax
C15: All rates and prices shall be net, exclusive of Value Added Tax
C17: Reference to contract
C19: The items in the bill of provisional quantities shall be read in conjunction with all other relevant parts of this document.
C21: Note: All requirements not specified are deemed to be included in the general pricing.
C23: Fixed Charge Items
C25: The sums stated for items under this heading shall cover the cost of providing, establishing and commissioning on the site the facilities adequately equipped to enable all the work to commence and to proceed to completion as required in terms of the contract. The sums shall also cover (where appropriate) the cost of demolition of and the removal from site of all items established and shall include for making good and restoring the site to the satisfaction of the Project Manager and/or Engineer
B28: 8.3.3 | C28: Specific requirements
A30: 1 | C30: Provision of security for Contract duration | D30: Months | E30: 18
C74: Total - Carried to Summary
C76: PRELIMINARIES AND GENERAL
C78: BILL NO. 1.2
C80: TIME RELATED ITEMS
B82: 8.4.1 | C82: Contractual Requirements | D82: Sum | E82: 1
B84: 8.5 | C84: Sums stated provisionally by the Engineer
A86: 1 | B86: 8.5.2 | C86: Training of labour | D86: Prov sum | E86: 1 | F86: 250,000.00 | G86: =E86*F86 -> 250,000.00
A88: =A86+1 -> 2 | C88: Overheads, charges and profit on item 84 | D88: % | E88: =F86 -> 250,000.00 | F88: 10% | G88: =E88*F88 -> 25,000.00
A90: =A88+1 -> 3 | B90: PSSC 9 | C90: Provide administrative, planning and on the job training to SMME's | D90: Prov sum | E90: 1.00 | F90: 216,000.00 | G90: =F90 -> 216,000.00
A92: =A90+1 -> 4 | B92: PSSC 10 | C92: Overhead, charges and profit on SMME training | D92: % | E92: =F90 -> 216,000.00 | F92: 10% | G92: =E92*F92 -> 21,600.00
B94: 8.7 | C94: Daywork (Provisional)
A96: =A92+1 -> 5 | C96: Allowance for labour | D96: Prov sum | E96: 1 | F96: 2,000,000.00 | G96: =E96*F96 -> 2,000,000.00
C161: Total - Carried to Summary
C163: SUMMARY TOTAL PRELIMINARIES AND GENERAL
C165: PRELIMINARIES (FIXED CHARGE ITEMS)
C167: PRELIMINARIES (TIME RELATED ITEMS)
C249: TOTAL SECTION

Sheet EARTHWORKS
A1: ITEM NO. | B1: PAYREF | C1: DESCRIPTION | D1: UNIT | E1: QUANTITY | F1: RATE | G1: AMOUNT
C3: SECTION 2 : EXTERNAL WORKS
C5: SECTION 2.1 : BULK EARTHWORKS
B7: SANS 1200 C | C7: BILL NO.1 :SITE CLEARANCE
C9: Reference Drawing.: Reservoir and tower
B11: PSC 8.2.1 | C11: Clear and grub:
A13: 1 | C13: Total Site Areas | D13: m² | E13: 13600
B15: 8.2.2 | C15: Remove and grub large trees and tree stumps of girth:
A17: 2 | C17: Over 2,0 m and up to and including 3,0 m | D17: No. | E17: 3
C90: Total - Carried to Summary
B92: SANS 1200 HA | C92: BILL NO.3 STRUCTURAL STEELWORK (SUNDRY ITEMS)
B94: 8.3.2 | C94: Handrails:
C96: Handrail assembly complete:
A98: 1 | C98: Horizontal | D98: m | E98: 50
A100: 2 | C100: Sloping (measured on slope) | D100: m | E100: 10
A102: 3 | C102: Shaped Ends | D102: No. | E102: 8
C179: Total - Carried to Summary
B181: PZ | C181: BILL NO.4 : PATENTED EARTH RETAINING SYSTEMS
B183: PZ.01 | C183: Patented earth retaining systems:
C185: Loffelstein precast concrete blocks of type:
A187: 1 | C187: L300, at 35° | D187: m² | E187: 80
C268: Total - Carried to Summary
B270: SANS 2001 CC1 | C270: BILL NO. 5 : CONCRETE (STRUCTURAL)
B272: SD8.6 | C272: Manufacture (or supply) and erect precast concrete units:
A274: 1 | C274: Concrete access steps | D274: No | E274: 1
C357: Total - Carried to Summary
C359: SUMMARY TOTAL BULK EARTHWORKS
C361: SITE CLEARANCE
C363: STRUCTURAL STEELWORK (SUNDRY ITEMS)
C365: PATENTED EARTH RETAINING SYSTEMS
C367: CONCRETE (STRUCTURAL)
C446: TOTAL SECTION

Sheet ROADS
A1: ITEM NO. | B1: PAYREF | C1: DESCRIPTION | D1: UNIT | E1: QUANTITY | F1: RATE | G1: AMOUNT
C3: SECTION 2 : EXTERNAL WORKS
C5: SECTION 2.2 : ROADS
B7: SANS 1200 D | C7: BILL NO.1 : EARTHWORKS
C9: Reference Drawing.: 113503-0000-DRG-1300
B11: PSD 8.3.2 | C11: Bulk excavation:
C13: Excavate in all materials and use for embankment or backfill as ordered from:
A15: 1 | C15: Necessary excavations | D15: m³ | E15: =+J15*0.15 -> 1402 | I15: =4249*1.1 -> 4674 | J15: =+I15/0.5 -> 9,347.80
B17: PSD 8.3.2 | C17: Extra over items 1 to 2 above for :
A19: =+A15+1 -> 2 | C19: Hard rock excavation | D19: m³ | E19: 0
A21: =+A19+1 -> 3 | C21: Extra over item 140.02 for hand excavation | D21: m³ | E21: 10
A23: =+A21+1 -> 4 | B23: 8.3.9 | C23: Extra over items 1 for backfill or for fill material against structures | D23: m³ | E23: =+(3.5+20)*0.5*1*1.1 -> 13
A25: =+A23+1 -> 5 | B25: PSD 8.3.15 | C25: Extra over items 1 for disposing of spoil material on a site provided by the Contractor | D25: m³ | E25: =+I15-E15 -> 3272
C88: Total - Carried to Summary
B90: SANS 1200 DM | C90: BILL NO. 2 : EARTHWORKS (ROADS, SUBGRADE)
B92: PSDM 8.3.3 | C92: Treatment of roadbed:
C94: Roadbed preparation and compaction of material to:
A96: 1 | C96: Scarify insitu material 150mm deep and recompact to 90% modified AASHTO maximum density | D96: m³ | E96: =+J15*0.15*1.1 -> 1542
A98: =+A96+1 -> 2 | B98: PSDM 8.3.5 | C98: C4 layer compacted to 95% of modified AASHTO maximum density | D98: m³ | E98: =+E96 -> 1542
A100: =+A98+1 -> 3 | C100: G7 compacted to 93% of modified AASHTO maximum density | D100: m³ | E100: =+E96 -> 1542
C175: Total - Carried to Summary
B177: SANS 2001 CC1 | C177: BILL NO.3 : PRECAST CONCRETE
B180: SD8.6 | C180: Provide structral precast unit
A182: 1 | C182: 300mm x 300mm Anchor Beams | D182: m | E182: 35
C264: Total - Carried to Summary
B266: SANS 1200 ME | C266: BILL NO.4 : SUBBASE
B268: PSME 8.3.5 | C268: Process subbase material by one of the following processes, as relevant, and use in the subbase:
A270: 1 | C270: Stabilization | D270: m³ | E270: =+E96 -> 1542
B272: PSME 8.3.8 | C272: Stabilizing agent:
A274: =+A270+1 -> 2 | C274: Portland cement | D274: t | E274: 6
B276: PSME 8.3.11 | C276: Treatment of subbase with:
A278: =+A274+1 -> 3 | C278: Weed killer | D278: m² | E278: =+J15 -> 9348
A280: =+A278+1 -> 4 | C280: Insecticide | D280: m² | E280: =+E278 -> 9348
C352: Total - Carried to Summary
B355: SANS 1200 MJ | C355: BILL NO.5 : SEGMENTED PAVING
B357: PSMJ 8.2.1 | C357: Provision of edge restraints:
B359: PSMJ 8.2.2 | C359: Construction of paving complete:
A361: 1 | C361: Type S-A blocks, 80 mm thick, grey interlocking pavers | D361: m² | E361: =+J15 -> 9348
B363: PSMJ 8.2.3 | C363: Cutting blocks to fit edge restraints:
A365: =+A361+1 -> 2 | C365: Straight cutting | D365: m | E365: =156+((35+65+23)*2*1.1)+(36*2*1.1) -> 506
A367: =+A365+1 -> 3 | C367: Circular cutting | D367: m | E367: =+(31+7)*2*1.1 -> 84
A369: =+A367+1 -> 4 | B369: PSMJ 8.2.4 | C369: Rolling to locked-up condition as specified in Clause 5.6.2 | D369: m² | E369: =+E280 -> 9348
C441: Total - Carried to Summary
B443: SANS 1200 MM | C443: BILL NO.6 : ANCILLARY ROADWORKS
C445: ROAD MARKINGS
B447: 8.4.1 | C447: Proprietary brand road marking material applied at nominal rate of 0,42 litre/m²:
C449: White lines (broken or unbroken):
A451: 1 | C451: 100 mm wide | D451: m | E451: 300
B453: 8.4.1 | C453: Non-reflectorized paint applied at nominal rate of 0,42 litre/m²:
C455: White lines (broken or unbroken):
A457: 2 | C457: 100 mm wide | D457: m | E457: 300
C528: Total - Carried to Summary
B530: SANS 1200 MK | C530: BILL NO.7 : KERBING AND CHANNELLING
B533: PSMK 8.2.1 | C533: Precast concrete kerbing:
A535: 1 | C535: Non mountable kerbs | D535: m | E535: 650
A537: 2 | C537: Mountable Kerb | D537: m | E537: 20
C617: Total - Carried to Summary
C619: SUMMARY TOTAL ROADS
C621: EARTHWORKS
C623: EARTHWORKS (ROADS,SUBGRADE)
C625: PRECAST ONCRETE (STRUCTURAL)
C627: SUBBASE
C629: SEGMENTED PAVING
C631: ANCILLARY ROADWORKS
C633: KERBING AND CHANNELING
C706: TOTAL SECTION

Sheet STORMWATER
A1: ITEM NO. | B1: PAYREF | C1: DESCRIPTION | D1: UNIT | E1: QUANTITY | F1: RATE | G1: AMOUNT
C3: SECTION 2 : EXTERNAL WORKS
C5: SECTION 2.3 : STORMWATER
B7: SANS 1200 D | C7: BILL NO.1 : EARTHWORKS
B9: PSD 8.3.2 | C9: Bulk excavation:
C11: Excavate in all materials for stormwater attenuation pond and use for embankment or backfill as ordered from:
A13: 1 | C13: Necessary excavations | D13: m³ | E13: =K13*I13 -> 658 | I13: 37% | K13: =1631*1.1 -> 1,794.10
A15: 2 | C15: Excavate in all materials for stormwater attenuation pond and dispose | D15: m³ | E15: =K13*I15 -> 1136 | I15: 63%
C17: Extra over items 1 and 2 for:
A19: 3 | C19: Intermediate excavation | D19: m³ | E19: =K13*I19 -> 807 | I19: 45%
A21: 4 | C21: Hard rock excavation | D21: m³ | E21: =K13*I21 -> 987 | I21: 55%
B23: PSD 8.3.3 | C23: Restricted excavation:
C25: Excavate for stormwater attenuation pond spillway in all materials, and use for backfill or embankment, or dispose:
A27: 5 | C27: Depth up to 1,0 m | D27: m³ | E27: 10
A29: 6 | C29: Depth over 1,0 m and up to 2,0 m | D29: m³ | E29: 10
A31: 7 | C31: Depth over 2,0 m and up to 3,0 m | D31: m³ | E31: 14
B33: PSD 8.3.3 | C33: Extra over items 5, 6, and 7 for:
A35: 8 | C35: Intermediate excavation | D35: m³ | E35: =E27+E29+E31 -> 34
A37: 9 | C37: Extra over items 5, 6, and 7 for hand excavation | D37: m³ | E37: 3
B39: PSD 8.3.6 | C39: Overhaul:
A41: 10 | C41: Limited overhaul | D41: m³ | G41: Rate only
G42: =IF(OR(AND(E42="Prov",F42="Sum"),(F42="PC Sum")),". . . . . . . . .00",IF(ISERR(E42*F42),"",IF(E42*F42=0,"",ROUND(E42*F42,2)))) -> 
A43: 11 | C43: Long overhaul | D43: m³-km | G43: Rate only
B45: PSD 8.3.8 | C45: Existing services:
C47: Hand excavation for locating and exposing existing services:
A49: 12 | C49: In all other areas for stormwater attenuation pond and spillway | D49: m³ | G49: Rate only
B51: 8.3.9 | C51: Extra over items 1, 2, 5, 6, and 7 for backfill or for fill material against
A53: 13 | C53: Attenuation pond and compact to 93% MOD AASHTO density | D53: m³ | E53: =1103*1.1*0.15 -> 182
A55: 14 | C55: Attenuation pond cement stabilised and compact to 95% MOD AASHTO density | D55: m³ | E55: =E53 -> 182
A57: 15 | C57: Stormwater attenuation pond spillway and compact to 95% MOD AASHTO density | D57: m³ | E57: =30*1.1*0.15 -> 5
B59: PSD 8.3.10 | C59: Topsoiling:
C61: Use topsoil material for:
A63: 16 | C63: Preparation layer for grassing at attenuation pond | D63: m³ | E63: =E53 -> 182
B65: 8.3.11 | C65: Grassing or other vegetation cover:
A67: 17 | C67: Planting of grass cuttings on attenuation pond surface | D67: m² | E67: =1103*1.1 -> 1213
A69: 18 | B69: PSD 8.3.14 | C69: Extra over items 1, 5, 6, and 7 for temporary stockpiling | D69: m³ | E69: =+E13+E27+E29+E31 -> 692
A71: 19 | B71: PSD 8.3.15 | C71: Extra over item 2 for disposing of spoil material on a site provided by the Contractor | D71: m³ | E71: =E15 -> 1136
C83: Total - Carried to Summary
B85: SANS 1200 DB | C85: BILL NO.2 : EARTHWORKS (PIPE TRENCHES)
B87: PSDB 8.3.2 | C87: Excavate in all materials for trenches, backfill, compact and dispose of surplus material:
C89: Pipes over 400 mm dia up to 675 mm dia for depths:
A91: 1 | C91: Up to 1,0 m | D91: m | E91: =141*1.1 -> 155
A93: =+A91+1 -> 2 | C93: Over 1,0 m up to 2,0 m | D93: m | E93: =271*1.1 -> 298
A95: =+A93+1 -> 3 | C95: Over 2,0 m up to 3,0 m | D95: m | E95: =6*1.1 -> 7
A97: =A95+1 -> 4 | B97: PSDB 8.3.2 | C97: Excavate in all materials for stormwater junction boxes and the like, irrespective of depth, and backfill around structures | D97: m³ | E97: =52*(1*1)*2*1.1 -> 114
B99: PSDB 8.3.2 | C99: Excavate open drains in all materials
A101: =+A97+1 -> 5 | C101: Concrete stormwater channel | D101: m³ | E101: =353*0.5*1*1.1 -> 194
B103: PSDB 8.3.2 | C103: Extra over items 4 and 5 for excavating in:
A105: =A101+1 -> 6 | C105: Intermediate material | D105: m³ | E105: =+E101 -> 194
B107: PSDB 8.3.3 | C107: Excavation ancillaries:
C109: Make up deficiency in backfill material:
A111: =+A105+1 -> 7 | C111: From other necessary excavations on site for fill material against concrete stormwater channels and compact to 95% MOD | D111: m³ | E111: =353*0.15*1*1.1 -> 58
C113: Overhaul:
A115: =A111+1 -> 8 | C115: Limited overhaul | D115: m³ | G115: Rate only
G116: =IF(OR(AND(E116="Prov",F116="Sum"),(F116="PC Sum")),". . . . . . . . .00",IF(ISERR(E116*F116),"",IF(E116*F116=0,"",ROUND(E116*F116,2)))) -> 
A117: =+A115+1 -> 9 | C117: Long overhaul | D117: m³-km | G117: Rate only
B119: PSD 8.3.8 | C119: Existing services:
C121: Hand excavation for locating and exposing existing services:
A123: =+A117+1 -> 10 | C123: In all other areas for stormwater channel 5 | D123: m³
C167: Total - Carried to Summary
B169: SANS 1200 DK | C169: BILL NO.3 : GABIONS AND PITCHING
B171: PSDK 8.2.5 | C171: Pitching:
C173: Grouted pitching:
A175: 1 | C175: Light pitching at attenuation pond headwalls | D175: m² | E175: 40
C256: Total - Carried to Summary
B258: SANS 1200 DM | C258: BILL NO.4 : EARTHWORKS (ROADS, SUBGRADE)
C260: Preparation of site:
A262: 1 | B262: 8.3.2 | C262: Removal of topsoil to a depth of 150 mm, at attenuation pond and the stockpiling and maintenance thereof | D262: m³ | E262: =1118*0.15*1.1 -> 184
B264: PSDM 8.3.3 | C264: Treatment of roadbed (stormwater channel layerworks):
C266: Layerworks preparation and compaction of material in 150mm layers to:
A268: =A262+1 -> 2 | C268: Minimum of 90% MOD AASHTO maximum density for stone pitching | D268: m³ | E268: 10
A270: =A268+1 -> 3 | C270: Minimum of 93% MOD AASHTO maximum density for attenuation pond | D270: m³ | E270: =+E262 -> 184
A272: =A270+1 -> 4 | C272: Minimum of 95% MOD AASHTO maximum density for rectangular concrete channels | D272: m³ | E272: =353*0.15*1*1.1 -> 58
A274: =A272+1 -> 5 | B274: 8.3.11 | C274: Extra over item 1 for temporary stockpiling of material | D274: m³ | E274: =+E262 -> 184
C276: Overhaul:
A278: =A274+1 -> 6 | C278: Limited overhaul | D278: m³ | G278: Rate only
G279: =IF(OR(AND(E279="Prov",F279="Sum"),(F279="PC Sum")),". . . . . . . . .00",IF(ISERR(E279*F279),"",IF(E279*F279=0,"",ROUND(E279*F279,2)))) -> 
A280: =A278+1 -> 7 | C280: Long overhaul | D280: m³-km | G280: Rate only
C340: Total - Carried to Summary
B342: SANS 2001 CC1 | C342: BILL NO.5 : CONCRETE (STRUCTURAL)
C344: SCHEDULED FORMWORK ITEMS
B346: SD8.2.1 | C346: Rough:
C348: Sloping formwork to:
A350: 1 | C350: Attenuation pond spillway | D350: m² | E350: =15*1.5*4*1.1 -> 99
A352: =+A350+1 -> 2 | C352: Concrete stormwater channels | D352: m² | E352: =354*4*0.35*1.1 -> 545
C354: SCHEDULED REINFORCEMENT ITEMS
B356: SD8.3.2 | C356: High-tensile welded mesh in the following:
A358: =+A352+1 -> 3 | C358: Stormwater channel mesh ref. 395 | D358: m² | E358: =354*1*1.1 -> 389
A360: =+A358+1 -> 4 | C360: Attenuation pond spillway mesh ref. 395 | D360: m² | E360: =((15*5)+(15*1.5*2))*1.1 -> 132
C362: SCHEDULED CONCRETE ITEMS
B364: SD8.4.3 | C364: Strength concrete:
C366: Class 25 MPa/ 19 mm concrete in:
A368: =+A360+1 -> 5 | C368: Stormwater channel | D368: m³ | E368: =354*0.15*1*1.1 -> 58
A370: =+A368+1 -> 6 | C370: Attenuation pond spillway | D370: m³ | E370: =15*5*0.15*1.1 -> 12
B372: SD8.4.4 | C372: Unformed surface finishes:
C374: Wood-floated finishes to:
A376: =+A370+1 -> 7 | C376: Stormwater channels | D376: m² | E376: =+E358 -> 389
A378: =+A376+1 -> 8 | C378: Attenuation pond spillway | D378: m² | E378: =+E360 -> 132
B380: SD8.5 | C380: Joints:
C382: 5mm thick 'Jointex' or similar approved joint former with 10mm tear-off strip, and sealing of joints with 10x10 'Flexolastic T' hot poured primerless tar based joint sealant or similar approved:
A384: =+A378+1 -> 9 | C384: Stormwater channel | D384: m² | E384: =+(118)*0.15*1*1.1 -> 19
A386: =+A384+1 -> 10 | C386: Attenuation pond spillway | D386: m² | E386: =+(5)*0.15*5*1.1 -> 4
B388: SD8.4.8 | C388: Screeds:
C389: Channel floor screeds (1:3) with falls including V-joints to form panels and a smooth steel-trowelled finish/power float finish to top:
A391: =+A386+1 -> 11 | C391: 15 Mpa stormwater rectangular channel | D391: m² | E391: =354*1*1.1 -> 389
C425: Total - Carried to Summary
B427: SANS 1200 HA | C427: BILL NO.6 : STRUCTURAL STEELWORK (SUNDRY ITEMS)
B429: 8.3.4 | C429: Flooring, complete and installed with frames:
A431: 1 | C431: Galvanised steel rectagrid RS40 with 50 x 4.5mm bearers | D431: m² | E431: =207*0.3*1.1 -> 68
C514: Total - Carried to Summary
B516: SANS 1200 LB | C516: BILL NO.7 : BEDDING (PIPES)
B518: 8.2.2 | C518: Supply of bedding by importation:
C520: From commercial sources:
A522: 1 | C522: Selected granular material | D522: m³ | E522: =1.05*1.2*354*J522*1.1 -> 216 | J522: 0.44
A524: 2 | C524: Selected fill material | D524: m³ | E524: =1.05*1.2*354*J524*1.1 -> 275 | J524: 0.56
C526: Encasing of pipes in concrete:
A528: 3 | C528: Class 25 MPa/19 mm | D528: m³ | E528: =45*1.2*1.05*1.1 -> 62
C603: Total - Carried to Summary
B605: SANS 1200 LE | C605: BILL NO.8 : STORMWATER DRAINAGE
B607: 8.2.1 | C607: Supply and lay concrete pipe culverts on class B bedding:
C609: Type SC 75D-load pipes with Spigot and Socket joints
A611: 1 | C611: 450mm dia | D611: m | E611: =93*1.1 -> 102
A613: =A611+1 -> 2 | C613: 600mm dia | D613: m | E613: =172*1.1 -> 189
A615: =A613+1 -> 3 | C615: 675mm dia | D615: m | E615: =9*1.1 -> 10
C617: Type SC 100D-load pipes with Spigot and Socket joints
A619: =A615+1 -> 4 | C619: 450mm dia | D619: m | E619: =109*1.1 -> 120
A621: =A619+1 -> 5 | C621: 600mm dia | D621: m | E621: =16*1.1 -> 18
A623: =A621+1 -> 6 | C623: 675mm dia | D623: m | E623: =20*1.1 -> 22
B625: 8.2.8 | C625: Supply and install manholes and the like:
C627: Brickwork manholes as shown on drawing no. 113503-0000-DRG-WD-1461
A629: =A623+1 -> 7 | C629: Up to 1.0m depth | D629: number | E629: 0
A631: =A629+1 -> 8 | C631: 1.0m to 1.5m depth | D631: number | E631: 8
A633: =A631+1 -> 9 | C633: 1.5m to 2.0m depth | D633: number | E633: 3
A635: =A633+1 -> 10 | C635: 2.0m to 2.5m depth | D635: number | E635: 2
A637: =A635+1 -> 11 | C637: 2.5m to 3.0m depth | D637: number | E637: 0
A639: =A637+1 -> 12 | C639: 3.0m to 3.5m depth | D639: number | E639: 2
C641: Grid inlets as shown on drawing no. 113503-0000-DRG-WD-1462
A643: =A639+1 -> 13 | C643: Up to 1.0m depth | D643: number | E643: 1
A645: =A643+1 -> 14 | C645: 1.0m to 1.5m depth | D645: number | E645: 9
A647: =A645+1 -> 15 | C647: 1.5m to 2.0m depth | D647: number | E647: 1
A649: =A647+1 -> 16 | C649: 2.0m to 2.5m depth | D649: number | E649: 11
C651: Inlet or Outlet structure (headwalls) as shown on drawing no. 113503-0000-DRG-WD-1463
A653: =A649+1 -> 17 | C653: Up to 1.0m depth | D653: number | E653: 3
C655: Supply and install manholes and the like:
C657: Double grid inlets:
A659: =A653+1 -> 18 | C659: As shown on drawing no 113503-0000-DRG-WD-1462 standard depth 1m | D659: number | E659: 1
C661: Junction boxes:
A663: =A659+1 -> 19 | C663: As shown on drawing no 113503-0000-DRG-WD-1461 standard depth 2m | D663: number | E663: 5
C665: Extra over or under items 17, 18 and 19 for variation in depth of manholes from the standard depth designated for purposes of tendering:
C667: Double grid inlets:
A669: =A663+1 -> 20 | C669: As shown on drawing no 113503-0000-DRG-WD-1462 standard depth 1m | D669: m | G669: Rate Only
C671: Junction boxes:
A673: =A669+1 -> 21 | C673: As shown on drawing no 113503-0000-DRG-WD-1461 standard depth 2m | D673: m | G673: Rate Only
B675: 8.2.10 | C675: Accessories:
C677: Manhole covers including frames:
A679: =A673+1 -> 22 | C679: SANS 558 type 2A | D679: number | E679: =SUM(E629:E639) -> 15
C681: Grid inlet cover frames:
A683: =A679+1 -> 23 | C683: 600mm x 600mm | D683: number | E683: =SUM(E643:E649) -> 22
A687: =A683+1 -> 24 | C687: 520mm x 790mm | D687: number | E687: =E659 -> 1
A690: =A687+1 -> 25 | C690: Step irons | D690: number | E690: 240
B692: PSLE 8.2.21 | C692: Break into existing stormwater kerb inlet, install new pipe and build new kerb inlet | D692: sum | E692: 1
C773: Total - Carried to Summary
C775: SUMMARY TOTAL FOR STORMWATER
C777: EARTHWORKS
C779: EARTHWORKS (PIPE TRENCHES)
C781: GABIONS AND PITCHING
C783: EARTHWORKS (ROADS, SUBGRADE)
C785: CONCRETE (STRUCTURAL)
C787: STRUCTURAL STEELWORK (SUNDRY ITEMS)
C789: BEDDING (PIPES)
C791: STORMWATER DRAINAGE
C862: TOTAL SECTION

Sheet SEWER&POTABLE
A1: ITEM NO. | B1: PAYREF | C1: DESCRIPTION | D1: UNIT | E1: QUANTITY | F1: RATE | G1: AMOUNT
C3: SECTION 2 : EXTERNAL WORKS
B5: SANS 1200 C | C5: SECTION 2.4 : SEWER & POTABLE
C7: BILL NO.1 : SITE CLEARANCE
B9: 8.2.8 | C9: Demolish and remove structures/buildings:
A11: 1 | C11: Demolish and remove existing sewer pipe and manhole | D11: sum | E11: 1
C90: Total - Carried to Summary
B92: SANS 1200 DB | C92: BILL NO.2 : EARTHWORKS (PIPE TRENCHES)
C94: TRENCHES FOR WATER PIPES
B96: PSDB 8.3.2 | C96: Excavate in all materials for trenches, backfill, compact and dispose of surplus material:
C98: Pipes up to 125 mm dia for depths:
A100: 1 | C100: Up to 1,0 m | D100: m | E100: =(5+67+14+17+1+4+4+1)*1.1 -> 124
C102: TRENCHES FOR SEWER PIPES
B104: PSDB 8.3.2 | C104: Excavate in all materials for trenches, backfill, compact and dispose of surplus material:
C106: Pipes up to 125 mm dia for depths:
A108: 2 | C108: Up to 1,0 m | D108: m | E108: =+(37+24+3)*1.1 -> 70
C176: Total - Carried to Summary
B178: SANS 1200 L | C178: BILL NO.3 : MEDIUM-PRESSURE PIPELINES
B180: 8.2.1 | C180: Supply, lay and bed on flexible bedding, complete with couplings:
C182: HDPE PE 100 PN 12.5 SDR 13.6 pipes:
A184: 1 | C184: 25 mm dia | D184: m | E184: =+E100 -> 124
B186: 8.2.2 | C186: Extra over items 1 for supplying, laying and bedding of HDPE specials complete with couplings:
C188: 90° elbows:
A190: =+A184+1 -> 2 | C190: 25mm dia | D190: No. | E190: 3
C192: 45° elbows:
A194: =+A190+1 -> 3 | C194: 25mm dia | D194: No. | E194: 4
C196: Tees:
A198: =+A194+1 -> 4 | C198: 25 mm dia x 100 mm dia | D198: No. | E198: 1
B200: PSL 8.2.11 | C200: Anchor/thrust blocks and pedestals:
C202: Concrete:
A204: =+A198+1 -> 5 | C204: Class 30MPa/19 mm | D204: m³ | E204: 1
G261: =IF(OR(AND(E261="Prov",F261="Sum"),(F261="PC Sum")),". . . . . . . . .00",IF(ISERR(E261*F261),"",IF(E261*F261=0,"",ROUND(E261*F261,2)))) -> 
C263: Total - Carried to Summary
B265: SANS 1200 LB | C265: BILL NO.4 : BEDDING (PIPES)
C267: BEDDING FOR WATER PIPES
B269: PSLB 8.2.2 | C269: Supply only of bedding by importation: | G269: =IF(OR(AND(E269="Prov",F269="Sum"),(F269="PC Sum")),". . . . . . . . .00",IF(ISERR(E269*F269),"",IF(E269*F269=0,"",ROUND(E269*F269,2)))) -> 
C271: From commercial sources:
A273: 1 | C273: Selected granular material | D273: m³ | E273: =124*0.65*0.25*1.1 -> 22
A275: =+A273+1 -> 2 | C275: Selected fill material | D275: m³ | E275: =124*0.2*0.25*1.1 -> 7
B277: 8.2.1 | C277: BEDDING FOR SEWER PIPES
B279: PSLB 8.2.2 | C279: Supply only of bedding by importation:
C281: From commercial sources:
A283: =+A275+1 -> 3 | C283: Selected granular material | D283: m³ | E283: =70*0.71*0.31*1.1 -> 17
A285: =+A283+1 -> 4 | C285: Selected fill material | D285: m³ | E285: =70*0.2*0.71*1.1 -> 11
C352: Total - Carried to Summary
B354: SANS 1200 LD | C354: BILL NO.5 : SEWERS
C356: Reference Drawing: 113503-0000-DRG-WS-1500
B358: 8.2.1 | C358: Supply, lay, joint, bed on a flexible bedding and test pipeline:
C360: uPVC heavy duty class 34 to SANS 791 pipes:
A362: 1 | C362: 110mm dia | D362: m | E362: =+E108 -> 70
B364: 8.2.3 | C364: Precast concrete manhole:
C366: With cover and frame:
A368: =+A362+1 -> 2 | C368: Depth 1 m up to 1.5 m | D368: No. | E368: 2
A370: =+A368+1 -> 3 | C370: Depth 1.5 m up to 2.0 m | D370: No. | E370: 0
A372: =+A370+1 -> 4 | C372: Depth 2.0 m up to 2.5 m | D372: No. | E372: 1
B374: 8.2.5 | C374: Cleaning eyes as shown on drawing 113503-0000-DRG-WS-1560 for:
A376: =+A372+1 -> 5 | C376: Erf connections | D376: No. | E376: 1
B378: 8.2.6 | C378: Erf connections:
C380: uPVC pipes complete
A382: =+A376+1 -> 6 | C382: 110mm dia | D382: No. | E382: 1
B384: 8.2.10 | C384: Accessories:
C386: Manhole covers including frames:
A388: =+A382+1 -> 7 | C388: SANS 448 Type 4 | D388: No. | E388: =+E368+E370+E372 -> 3
A390: =+A388+1 -> 8 | B390: PSLD 8.2.11 | C390: Connection to existing sewer | D390: Sum | E390: 1
A392: =+A390+1 -> 9 | B392: PSLD 8.2.13 | C392: Breaking into existing sewer and building a new manhole | D392: No. | E392: 1
G438: =IF(OR(AND(E438="Prov",F438="Sum"),(F438="PC Sum")),". . . . . . . . .00",IF(ISERR(E438*F438),"",IF(E438*F438=0,"",ROUND(E438*F438,2)))) -> 
C439: Total - Carried to Summary
B441: SANS 1200 LF | C441: BILL NO.6 : ERF CONNECTIONS (WATER)
C443: Reference Drawing: 113503-0000-DRG-WW-1600
A445: 1 | B445: 8.2.1 | C445: Provide erf connections complete: | D445: No. | E445: 1
C528: Total - Carried to Summary
C530: SUMMARY TOTAL SEWER AND POTABLE WATER
C532: SITE CLEARANCE
C534: EARTHWORKS (PIPE TRENCHES)
C536: MEDIUM-PRESSURE PIPELINES
C538: BEDDING (PIPES)
C540: SEWERS
C542: ERF CONNECTIONS (WATER)
C617: TOTAL SECTION

Sheet SCOUR
A1: ITEM NO. | B1: PAYREF | C1: DESCRIPTION | D1: UNIT | E1: QUANTITY | F1: RATE | G1: AMOUNT
C3: SECTION 2 : EXTERNAL WORKS
C5: SECTION 2.5 : SCOUR PIPELINE
B7: SANS 1200 C | C7: BILL NO .1 : SITE CLEARANCE
C9: Clear and grub:
A11: 1 | B11: PSC 8.2.1 | C11: Strips, 3m wide | D11: m | E11: =42*1.1 -> 46
A13: 2 | B13: 8.2.5 | C13: Take down existing fences | D13: m
C90: Total - Carried to Summary
C92: SUMMARY TOTAL SCOUR PIPELINE
C94: SITE CLEARANCE
C179: TOTAL SECTION

Sheet COLLECTION CHAMBER
A1: ITEM NO. | B1: PAYREF | C1: DESCRIPTION | D1: UNIT | E1: QUANTITY | F1: RATE | G1: AMOUNT
C3: SECTION 2 : EXTERNAL WORKS
C5: SECTION 2.6 : COLLECTION CHAMBER
B7: SANS 1200 HA | C7: BILL NO.3 : STRUCTURAL STEELWORK (SUNDRY ITEMS) | G7: =IF(OR(AND(E7="Prov",F7="Sum"),(F7="PC Sum")),". . . . . . . . .00",IF(ISERR(E7*F7),"",IF(E7*F7=0,"",ROUND(E7*F7,2)))) -> 
B9: 8.3.3 | C9: Ladders, complete and installed
A11: 1 | C11: Access ladders, complete with corrosion protection, as per drawing: 113503-0000-DRG-WD-1760 | D11: No | E11: 1
B13: 8.3.4 | C13: Flooring, complete and installed with frames:
A15: 2 | C15: Frame, complete with corrosion protection | D15: No. | E15: 1
A17: 3 | C17: Grating (rectagrid), complete with corrosion protection | D17: m² | E17: =2.98*2.48*1.1 -> 8
B19: 8.3.5 | C19: Erection or installation only:
C21: Flooring, complete and installed with frames:
A23: 4 | C23: Ladders | D23: Sum | E23: 1
B25: 8.3.6 | C25: Corrosion protection:
A27: 5 | C27: Ladders | D27: Sum | E27: 1
C89: Total - Carried to Summary
C91: SUMMARY TOTAL SCOUR COLLECTION CHAMBER
C93: STRUCTURAL STEELWORK (SUNDRY ITEMS)
C178: TOTAL SECTION

Sheet BULK PIPE_PHASE1
A1: ITEM NO. | B1: PAYREF | C1: DESCRIPTION | D1: UNIT | E1: QUANTITY | F1: RATE | G1: AMOUNT
C3: SECTION 2 : EXTERNAL WORKS
C5: SECTION 2.7 : BULK PIPELINE PHASE 1
B7: SANS 1200C | C7: BILL NO 1 : SITE CLEARANCE | G7: =IF(OR(AND(E7="Prov",F7="Sum"),(F7="PC Sum")),". . . . . . . . .00",IF(ISERR(E7*F7),"",IF(E7*F7=0,"",ROUND(E7*F7,2)))) -> 
B10: PSC 8.2.1 | C10: Clear and grub:
A12: 1 | C12: Areas (chambers, structures, etc) | D12: m² | E12: 48
A14: 2 | C14: Strips, 1,5 m wide (water) Paving/Asphalt | D14: m | E14: 880
B16: 8.2.2 | C16: Remove and grub large trees and tree stumps of girth:
A18: 3 | C18: Over 1,0 m and up to and including 2,0 m | D18: No | E18: 15
A20: 4 | C20: Over 2,0 m and up to and including 3,0m | D20: No | E20: 15
B22: 8.2.4 | C22: Reclear surfaces (only on instructions from the Engineer):
A24: 5 | B24: 8.2.10 | C24: Remove topsoil to nominal depth of 150 mm and stockpile | D24: m³ | E24: 396
A26: 6 | B26: PSC 8.2.14 | C26: Final finishing and cleaning up of the site of the Works | D26: Sum | E26: 1
C99: Total - Carried to Summary
C101: SUMMARY TOTAL BULK PIPELINE PHASE 1
C103: SITE CLEARANCE
C198: TOTAL SECTION

Sheet BULK PIPE_PHASE2
A1: ITEM NO. | B1: PAYREF | C1: DESCRIPTION | D1: UNIT | E1: QUANTITY | F1: RATE | G1: AMOUNT
C3: SECTION 2 : EXTERNAL WORKS
C5: SECTION 2.8: BULK PIPELINE PHASE 2
B7: SANS 1200C | C7: BILL NO.1 : SITE CLEARANCE | G7: =IF(OR(AND(E7="Prov",F7="Sum"),(F7="PC Sum")),". . . . . . . . .00",IF(ISERR(E7*F7),"",IF(E7*F7=0,"",ROUND(E7*F7,2)))) -> 
B9: PSC 8.2.1 | C9: Clear and grub:
A11: 1 | C11: Areas (chambers, structures, etc) | D11: m² | E11: 56
A13: 2 | C13: Strips, 1,5 m wide (water) Paving/Asphalt | D13: m | E13: 1030
B15: 8.2.2 | C15: Remove and grub large trees and tree stumps of girth:
A17: 3 | C17: Over 1,0 m and up to and including 2,0 m | D17: No | E17: 10
A19: 4 | C19: Over 2,0 m and up to and including 3,0 m | D19: No | E19: 10
A21: 5 | B21: 8.2.10 | C21: Remove topsoil to nominal depth of 150 mm and stockpile | D21: m³ | E21: 464
A23: 6 | B23: PSC 8.2.14 | C23: Final finishing and cleaning up of the Site of the Works | D23: Sum | E23: 1
C98: Total - Carried to Summary
G99: =IF(OR(AND(E99="Prov",F99="Sum"),(F99="PC Sum")),". . . . . . . . .00",IF(ISERR(E99*F99),"",IF(E99*F99=0,"",ROUND(E99*F99,2)))) -> 
B100: SANS 1200DK | C100: BILL NO. 4 : GABIONS AND PITCHING
B103: 8.2.1 | C103: Surface preparation for bedding of gabions: 1 no. Scour Valves
A105: 1 | C105: Cavities filled with approved excavated material or rock | D105: m² | E105: 25
B107: 8.2.2 | C107: Gabions:
C109: Gabion boxes of galvanized wire:
A111: 2 | C111: 100 mm x 100 mm mesh, 2,7 mm dia wire, 1,0 m x 1,0 m x 0,5 m boxes | D111: m³ | E111: 5
C113: Gabion mattresses of galvanized wire, up to 0,3 m deep:
A115: 3 | C115: 80 mm x 100 mm mesh, 2,6 mm dia wire, 6,0 m x 2,1 m x 0,3 m mattress | D115: m³ | E115: 8
B117: 8.2.4 | C117: Geotextile:
A119: 4 | C119: Grade 4 or approved equivalent | D119: m² | E119: 31
C184: Total - Carried to Summary
C186: SUMMARY TOTAL BULK PIPELINE PHASE 2
C188: SITE CLEARANCE
C190: GABIONS AND PITCHING
C273: TOTAL SECTION

Sheet BULK PIPE_PHASE3
A1: ITEM NO. | B1: PAYREF | C1: DESCRIPTION | D1: UNIT | E1: QUANTITY | F1: RATE | G1: AMOUNT
C3: SECTION 2 : EXTERNAL WORKS
C5: SECTION 2.9 : BULK PIPLINE PHASE 3
B7: SANS 1200C | C7: BILL NO.1 : SITE CLEARANCE
B10: PSC 8.2.1 | C10: Clear and grub:
A12: 1 | C12: Areas (chambers, structures, etc) | D12: m² | E12: 51
A14: 2 | C14: Strips, 1,5 m wide (water) Paving/Asphalt | D14: m | E14: 1407
B16: 8.2.2 | C16: Remove and grub large trees and tree stumps of girth:
A18: 3 | C18: Over 1,0 m and up to and including 2,0 m | D18: No | E18: 10
A20: 4 | C20: Over 2,0 m and up to and including 3,0 m | D20: No | E20: 10
A22: 5 | B22: 8.2.10 | C22: Remove topsoil to nominal depth of 150 mm and stockpile | D22: m³ | E22: 318
A24: 6 | B24: PSC 8.2.14 | C24: Final finishing and cleaning up of the | D24: Sum | E24: 1
C90: Total - Carried to Summary
B92: SANS 1200 DK | C92: BILL NO.4 : GABIONS AND PITCHING
B95: 8.2.1 | C95: Surface preparation for bedding of gabions: 1 no. Scour Valves
A97: 1 | C97: Cavities filled with approved excavated material or rock | D97: m² | E97: 24
B99: 8.2.2 | C99: Gabions:
C101: Gabion boxes of galvanized wire:
A103: 2 | C103: 100 mm x 100 mm mesh, 2,7 mm dia wire, 1,0 m x 1,0 m x 0,5 m boxes | D103: m³ | E103: 5
C105: Gabion mattresses of galvanized wire, up to 0,3 m deep:
A107: 3 | C107: 80 mm x 100 mm mesh, 2,6 mm dia wire, 6,0 m x 2,0 m x 0,3 m mattress | D107: m³ | E107: 7
B109: 8.2.4 | C109: Geotextile:
A111: 4 | C111: Grade 4 or approved equivalent | D111: m² | E111: 39
G113: =IF(OR(AND(E113="Prov",F113="Sum"),(F113="PC Sum")),". . . . . . . . .00",IF(ISERR(E113*F113),"",IF(E113*F113=0,"",ROUND(E113*F113,2)))) -> 
C176: Total - Carried to Summary
C178: SUMMARY TOTAL BULK PIPELINE PHASE 3
C180: SITE CLEARANCE
C182: GABIONS AND PITCHING
C265: TOTAL SECTION

Sheet BULK PIPE_PHASE4
A1: ITEM NO. | B1: PAYREF | C1: DESCRIPTION | D1: UNIT | E1: QUANTITY | F1: RATE | G1: AMOUNT
C3: SECTION 2 : EXTERNAL WORKS
C5: SECTION 2.10 : BULK PIPELINE PHASE 4
B7: SANS 1200 C | C7: BILL NO.1 : SITE CLEARANCE
B9: PSC 8.2.1 | C9: Clear and grub:
A11: 1 | C11: Strips, 1,5 m wide (water) Paving/Asphalt | D11: m | E11: 2137
B13: 8.2.2 | C13: Remove and grub large trees and tree stumps of girth:
A15: 2 | C15: Over 1,0 m and up to and including 2,0 m | D15: No | E15: 10
A17: 3 | C17: Over 2,0 m and up to and including 3,0 m | D17: No | E17: 10
A19: 4 | B19: 8.2.10 | C19: Remove topsoil to nominal depth of 150 mm and stockpile | D19: m³ | E19: 481
A21: 5 | B21: PSC 8.2.14 | C21: Final finishing and cleaning up of the Site of the Works | D21: Sum | E21: 1
G24: =IF(OR(AND(E24="Prov",F24="Sum"),(F24="PC Sum")),". . . . . . . . .00",IF(ISERR(E24*F24),"",IF(E24*F24=0,"",ROUND(E24*F24,2)))) -> 
C90: Total - Carried to Summary
C92: SUMMARY TOTAL BULK PIPELINE PHASE 4
C94: SITE CLEARANCE
C179: TOTAL SECTION

Sheet BULK PIPE_PHASE5
A1: ITEM NO. | B1: PAYREF | C1: DESCRIPTION | D1: UNIT | E1: QUANTITY | F1: RATE | G1: AMOUNT
C3: SECTION 2 : EXTERNAL WORKS
C5: SECTION 2.11 : BULK PIPELINE PHASE 5
B6: SANS 1200 C
C7: BILL NO .1 : SITE CLEARANCE
B10: PSC 8.2.1 | C10: Clear and grub:
A12: 1 | C12: Strips, 1,5 m wide (water) Paving/Asphalt | D12: m | E12: 1836
B14: 8.2.2 | C14: Remove and grub large trees and tree stumps of girth:
A16: 2 | C16: Over 1,0 m and up to and including 2,0 m | D16: No | E16: 10
A18: 3 | C18: Over 2,0 m and up to and including 3,0 m | D18: No | E18: 10
A20: 4 | B20: 8.2.10 | C20: Remove topsoil to nominal depth of 150 mm and stockpile | D20: m³ | E20: 413
A22: 5 | B22: PSC 8.2.14 | C22: Final finishing and cleaning up of the Site of the Works | D22: Sum | E22: 1
G26: =IF(OR(AND(E26="Prov",F26="Sum"),(F26="PC Sum")),". . . . . . . . .00",IF(ISERR(E26*F26),"",IF(E26*F26=0,"",ROUND(E26*F26,2)))) -> 
C90: Total - Carried to Summary
C92: SUMMARY TOTAL BULK PIPELINE PHASE 5
C94: SITE CLEARANCE
C179: TOTAL SECTION

Sheet LANDSCAPE
A1: ITEM NO. | B1: PAYREF | C1: DESCRIPTION | D1: UNIT | E1: QUANTITY | F1: RATE | G1: AMOUNT
C3: SECTION 2 : EXTERNAL WORKS
C5: SECTION 2.13 : LANDSCAPE
B7: SANS 1200 C | C7: BILL NO.1 : SITE CLEARANCE
A10: 1 | B10: 8.2.1 | C10: Clear and grub (areas) | D10: m²
A12: 2 | B12: 8.2.9 | C12: Transport materials and debris to unspecified sites and dump (Provisional) | D12: m3-Km | E12: 1 | G12: Rate Only
C89: Total - Carried to Summary
B91: PLS 9 | C91: BILL NO. 5 : LANDSCAPE SOFTSCAPING
A93: 1 | B93: 9.7.1 | C93: Soil test | D93: No | E93: 1
A95: 2 | B95: 9.7.2 | C95: Clearing of area for planting | D95: m² | E95: 4863
A97: 3 | B97: 9.7.4 | C97: Topsoil from stockpile | D97: m3 | E97: 1 | G97: Rate Only
C99: 150mm thick
A101: 4 | B101: 9.7.5 | C101: Topsoil imported to site | D101: m³ | E101: 64
C103: 150mm thick
A105: 5 | B105: 9..7.6 | C105: Compost to lawn | D105: m³ | E105: 11
C107: 25mm thick
A109: 6 | B109: 9.7.6 | C109: Compost to trees | D109: m³ | E109: 1.54
C111: 0.07/m3 tree
A113: 7 | B113: 9.7.7 | C113: Planter mix | D113: m³ | E113: 5
A115: 8 | B115: 9.7.8 | C115: Scarifying of areas | D115: m² | E115: 429
C117: 300mm deep
A119: 9 | B119: 9.7.9 | C119: Shaping and trimming | D119: m² | E119: 1217
A121: 10 | B121: 9.7.10 | C121: Fine grading of the following areas: Lawn (hydroseeding and sods) | D121: m² | E121: 4863
B123: 9.7.11 | C123: Fertilizer
A125: 11 | C125: Agricultural lime at 300kg/ha | D125: kg | E125: 13
A127: 12 | C127: Super phosphate at 0.15kg/m² | D127: kg | E127: 183
A129: 13 | C129: Superphosphate at 0.15kg/tree | D129: kg | E129: 3
A131: 14 | C131: 2:3:2 (22) at 0.15kg/m² | D131: kg | E131: 183
A133: 15 | C133: 2:3:2 (22) at 0.15kg/tree | D133: kg | E133: 1
A135: 16 | C135: Agriform tablets (2yr release) at 2 x21g tablets per tree | D135: No | E135: 44
A137: 17 | C137: Bonemeal at 0.1kg/tree | D137: kg | E137: 2.2
A139: 18 | B139: 9.7.12 | C139: Mulch 50mm thick bark chips | D139: m3 | E139: 1 | G139: Rate Only
A141: 19 | B141: 9.7.14 | C141: Trees Deliver and plant Combretum erythrophyllum | D141: No | E141: 22
C142: (100L)
A144: 20 | B144: 9.7.15 | C144: Tree stakes and ties | D144: No | E144: 22
A146: 21 | B146: 9.7.17 | C146: Groundcovers Tulbaghia violecea 4L @ 9/mÂ² | D146: No | E146: 86
A148: 22 | B148: 9.7.18 | C148: Cynodon dactylon plugs | D148: m² | E148: 226
A150: 23 | B150: 9.7.19 | C150: Hydroseeding Cynodon dactylon | D150: m² | E150: 788
A152: 24 | C152: Highveld grass mix | D152: m² | E152: 3781
C177: Total - Carried to Summary
B179: PIR 14 | C179: BILL NO. 7 : IRRIGATION
A181: 1 | B181: 14.3.2 | C181: Provide 110 mm irrigation sleeves at positions | D181: m | E181: 298
C183: Indicated on drawing no. 113503 0000 DRG AL 7001 T0
A185: 2 | B185: 14.3.1 | C185: Supply, deliver and install irrigation as per specialist BOQ | D185: Sum | E185: 1
C187: Refer to drawing no: 113503 0000 DRG AL 7007 T0
C266: Total - Carried to Summary
B268: PLM 15 | C268: BILL NO.8 : LANDSCAPE MAINTENANCE
A270: 1 | C270: Landscape Maintenance | D270: month | E270: 3
C355: Total - Carried to Summary
B357: PA | C357: BILL NO.9 : FENCING
B359: PA 12.1 | C359: Supply and erection of new fencing material complete to Drawing No:113503-0000-DRG-CC-1062:
A361: 1 | C361: Clearvu Mesh panel 3297 wide x 2100mm high | D361: No | E361: =550/3.383*1.1 -> 179
A363: =A361+1 -> 2 | C363: Galvanized post, 2700 mm long | D363: No | E363: =(550/3.383+1)*1.1 -> 180
A365: =A363+1 -> 3 | C365: Concrete post foundation (400x400x600)mm | D365: m³ | E365: =(0.4*0.4*0.6)*E363*1.1 -> 19
A367: =A365+1 -> 4 | C367: Shark tooth spike rail, 100mm high | D367: m | E367: =550*1.1 -> 605
A369: =A367+1 -> 5 | C369: Anti Burrow Ripper Flatwrap, 500mm wide | D369: m | E369: =E367/3 -> 202
B371: PA 12.2 | C371: New gates:
A373: =A369+1 -> 6 | C373: Double Leaf Swing Gates with Clearvu Fencing complete to drawing 113503-0000-DRG-CC-1062 | D373: No | E373: 1
A375: =A373+1 -> 7 | C375: Sliding Gates with Clearvu Fencing complete to drawing 113503-0000-DRG-CC-1062 | D375: No | E375: 3
A377: 8 | B377: PA 12.3 | C377: Drilling and blasting holes for posts and anchors | D377: No | E377: =E363*0.4 -> 72
C441: Total - Carried to Summary
C443: SUMMARY TOTAL LANDSCAPE
C445: SITE CLEARANCE
C447: SUBBASE
C449: SEGMENTED PAVING
C451: LANDSCAPE SOFTSCAPING
C453: LANDSCAPE HARDSCAPING
C455: IRRIGATION
C457: LANDSCAPE MAINTENANCE
C459: FENCING
C528: TOTAL SECTION

Sheet RESERVOIR
A1: ITEM NO. | B1: PAYREF | C1: DESCRIPTION | D1: UNIT | E1: QUANTITY | F1: RATE | G1: AMOUNT
C3: SECTION 4 : RESERVOIR
B5: PD.01 | C5: BILL NO. 11 : BUILDING WORK
B7: PD 10.01 | C7: Brickwork:
A9: 1 | C9: 230mm thick NFX load-bearing engineering bricks with 14Mpa mortar (1:4 cement:sand) | D9: m² | E9: 351
B11: PD 10.02 | C11: Plaster work:
C13: Internal Plaster
A15: 2 | C15: 15mm thick internal cement plaster, steel-float finish | D15: m² | E15: 172
C17: External Plaster
A19: 3 | C19: 15mm thick, external cement plaster wood float finish | D19: m² | E19: 278
B21: PD 10.03 | C21: Floor screeds:
A23: 4 | C23: Average 75mm Thick 20Mpa screed to falls - Reservoir | D23: m² | E23: 4,711
A25: 5 | C25: Average 75mm Thick 25Mpa screed to falls - Pumphouse | D25: m² | E25: 44
B27: PD 10.04 | C27: Doors and windows:
C29: Aluminium louvres complete with frame and glazed panels:
A31: 7 | C31: 900 x 900mm "Trox" or similar approved aluminium lourvers | D31: No | E31: 9
B33: PD 10.07 | C33: Joinery:
C35: Items measured by number:
A37: 8 | C37: Semi solid core flush panelled single door size 813 x 2032 x 44mm thick, cut 100mm short, with commercial veneered finish suitable for painting on both sides including pressed steel double rebated door frame suitable for 230mm wall, including all necessary ironmongery. | D37: No | E37: 3
B39: PD 10.08 | C39: Miscellaneous work:
C41: (a) Paintwork
C43: One coat wood primer and two coats eggshell enamel paint:
A45: 9 | C45: Timber doors | D45: m² | E45: 10
C47: One coat universal undercoat and two coats eggshell enamel paint:
A49: 10 | C49: Steel door frames | D49: m² | E49: 1
C51: One coat primer, one undercoat and two coats PVA emulsion paint on:
A53: 11 | C53: Internal plastered walls | D53: m² | E53: 278
A55: 12 | C55: External plastered walls | D55: m² | E55: 172
B57: PD 10.09 | C57: Miscellaneous items:
C59: Items measured by number:
A61: 13 | C61: 4800 x 3400mm high Purpose made Motorised galvanised steel security gates comprising 60kg/m2 steel frame and guide frame, complete with and including wheels, rails, cover plates, motor etc. as per drawings and specifications. | D61: No | E61: 1
C63: Items measured by length:
A65: 14 | C65: 150mm Wide brick reinforcement built in horizontally | D65: m | E65: 356
A67: 15 | C67: 75 x 110mm Wide precast presstresed concrete lintels | D67: m | E67: 38
A69: 16 | C69: 300mm wide Precast sills | D69: m | E69: 22
C75: Total - Carried to Summary
C77: SUMMARY TOTAL RESERVOIR
C79: BUILDING WORK
C159: TOTAL SECTION

Sheet TOTAL SUMMARY PAGE
A1: ITEM NO. | B1: DESCRIPTION | C1: AMOUNT | D1: Smme
B3: FINAL SUMMARY
A5: SECTION 1 | B5: PRELIMINARIES AND GENERAL | C5: =SUM(C9:C35)*0.15 -> 0 | D5: =SUM(D9:D35)*0.15 -> 1,564,237.81
A7: SECTION 2 | B7: EXTERNAL WORKS
A9: SECTION 2.1 | B9: BULK EARTHWORKS | C9: =EARTHWORKS!G446 -> 0 | D9: 249,300.00
A11: SECTION 2.2 | B11: ROADS | C11: =ROADS!G706 -> 0 | D11: 2,684,100.00
A13: SECTION 2.3 | B13: STORMWATER | C13: =STORMWATER!G862 -> 0 | D13: 2,781,214.80
A15: SECTION 2.4 | B15: SEWER & POTABLE | C15: ='SEWER&POTABLE'!G617 -> 0 | D15: 100,967.50
A17: SECTION 2.5 | B17: SCOUR PIPELINE | C17: =SCOUR!G179 -> 0 | D17: 900.00
A19: SECTION 2.6 | B19: COLLECTION CHAMBER | C19: ='COLLECTION CHAMBER'!G178 -> 0 | D19: 29,250.00
A21: SECTION 2.7 | B21: BULK PIPELINE PHASE 1 | C21: ='BULK PIPE_PHASE1'!G198 -> 0 | D21: 89,380.00
A23: SECTION 2.8 | B23: BULK PIPELINE PHASE 2 | C23: ='BULK PIPE_PHASE2'!G273 -> 0 | D23: 91,580.00
A25: SECTION 2.9 | B25: BULK PIPELINE PHASE 3 | C25: ='BULK PIPE_PHASE3'!G265 -> 0 | D25: 90,462.32
A27: SECTION 2.10 | B27: BULK PIPELINE PHASE 4 | C27: ='BULK PIPE_PHASE4'!G179 -> 0 | D27: 72,097.38
A29: SECTION 2.11 | B29: BULK PIPELINE PHASE 5 | C29: ='BULK PIPE_PHASE5'!G179 -> 0 | D29: 69,576.50
A31: SECTION 2.13 | B31: LANDSCAPE AND FENCING | C31: =LANDSCAPE!G528 -> 0 | D31: 3,034,519.32
A33: SECTION 4 | B33: RESERVOIR
A35: SECTION 4.1 | B35: RESERVOIR | C35: =RESERVOIR!G159 -> 0 | D35: 1,134,904.24
B58: TOTAL VALUE | C58: =SUM(C4:C57) -> 0 | D58: =SUM(D5:D57) -> 11,992,489.87
F399: 2251222.64
